bitfinex/quotes_SOLUSD_20260114
["timestamp","ask_amount","ask_price","bid_price","bid_amount"]
[1768362674923,2.70759279,145.76,145.73,0.2]
[1768362675125,2.70759279,145.74,145.71,0.2]
[1768362675330,2.70759279,145.73,145.71,0.2]
[1768362676019,12.5,145.78,145.72,0.66450609]
[1768362676219,22.06709809,145.79,145.73,0.66450609]
[1768362676418,2.70759279,145.78,145.73,0.66450609]
[1768362677135,9.56741984,145.78,145.73,0.66450609]
[1768362677847,9.56741984,145.78,145.74,0.66458726]
[1768362678530,9.53741982,145.78,145.74,0.66458726]
[1768362681128,12.5,145.8,145.75,0.66458726]
[1768362681331,15.20759279,145.8,145.75,0.66458726]
[1768362681828,22.06630877,145.8,145.75,0.66458726]
[1768362683427,22.06630877,145.8,145.76,0.66458726]
[1768362684147,2.70759279,145.79,145.76,0.66458726]
[1768362685124,2.70759279,145.77,145.74,0.66458726]
[1768362685423,9.56794059,145.77,145.74,0.66458726]
[1768362685920,9.56794059,145.77,145.73,0.66458726]
[1768362685921,6.8603478,145.77,145.73,0.66458726]
[1768362686133,2.70759279,145.76,145.73,0.66458726]
[1768362688943,6.8603478,145.77,145.73,0.66458726]
[1768362689136,9.56794059,145.77,145.73,0.66458726]
[1768362689332,11.09087923,145.79,145.74,11.0928766]
[1768362689530,23.59087923,145.79,145.75,0.66458726]
[1768362691253,11.09087923,145.79,145.75,0.66458726]
[1768362692156,4.23166496,145.79,145.76,0.66458726]
[1768362695333,6.85897062,145.8,145.76,0.66458726]
[1768362695538,12.5,145.82,145.79,0.71011301]
[1768362696238,16.73166496,145.83,145.79,0.71011301]
[1768362701761,23.5890302,145.83,145.79,0.71011301]
[1768362704856,19.35736524,145.83,145.79,0.71011301]
[1768362705057,23.5890302,145.83,145.79,0.71011301]
[1768362706051,23.5890302,145.83,145.78,11.09124943]
[1768362706946,23.5890302,145.83,145.79,0.71011301]
[1768362707467,19.35736524,145.83,145.79,0.71011301]
[1768362707761,23.5890302,145.83,145.79,0.71011301]
[1768362708871,23.5890302,145.83,145.78,4.23166496]
[1768362709050,19.35736524,145.83,145.78,4.23166496]
[1768362709257,23.5890302,145.83,145.78,4.23166496]
[1768362709749,4.23166496,145.82,145.75,0.71011301]
[1768362709968,4.23166496,145.8,145.75,13.54096121]
[1768362710179,12.5,145.8,145.75,18.48273918]
[1768362710348,12.5,145.8,145.76,11.09218315]
[1768362710670,12.5,145.82,145.79,0.71011301]
[1768362718068,12.5,145.82,145.77,11.80158144]
[1768362718976,12.5,145.82,145.78,0.71011301]
[1768362720478,12.5,145.82,145.8,0.71011301]
[1768362720679,0.11650981,145.85,145.8,4.23166496]
[1768362720992,4.34817477,145.85,145.8,4.23166496]
[1768362721179,4.34817477,145.85,145.81,0.71011301]
[1768362721476,24.2950638,145.86,145.81,0.71011301]
[1768362721863,24.2950638,145.86,145.82,0.71011301]
[1768362722373,0.11650981,145.85,145.82,0.71011301]
[1768362722575,0.11650981,145.85,145.81,7.56820039]
[1768362723881,6.85637134,145.85,145.81,0.71011301]
[1768362724084,6.85637134,145.85,145.82,0.71011301]
[1768362725085,24.2950447,145.86,145.82,0.71011301]
[1768362728888,0.11650981,145.85,145.82,0.71011301]
[1768362729073,0.11650981,145.85,145.81,4.91457431]
[1768362729389,0.11650981,145.85,145.82,0.68290935]
[1768362730295,0.11650981,145.85,145.81,4.23166496]
[1768362730590,0.11650981,145.85,145.81,4.91457431]
[1768362730797,0.11650981,145.85,145.8,11.77313189]
[1768362730980,0.68401565,145.84,145.8,4.23166496]
[1768362731380,0.68401565,145.84,145.79,11.77354745]
[1768362732289,7.5409569,145.84,145.79,11.77354745]
[1768362732492,0.1395745,145.83,145.79,11.77354745]
[1768362734890,7.5409569,145.84,145.8,0.68290935]
[1768362735195,0.1395745,145.83,145.8,0.68290935]
[1768362735698,0.1395745,145.83,145.79,11.77354745]
[1768362736192,6.85694125,145.84,145.8,4.91457431]
[1768362736399,0.67857124,145.83,145.8,0.68290935]
[1768362736599,0.67857124,145.83,145.79,11.77354745]
[1768362738097,0.67857124,145.83,145.8,0.66758718]
[1768362738999,0.67857124,145.83,145.79,11.75833082]
[1768362739194,0.67857124,145.83,145.8,4.23166496]
[1768362741892,0.67857124,145.83,145.8,4.89925214]
[1768362742503,0.67857124,145.83,145.8,0.66758718]
[1768362742697,0.67857124,145.83,145.8,4.89925214]
[1768362744497,0.67857124,145.83,145.8,4.23166496]
[1768362744883,0.57857124,145.83,145.79,4.89925214]
[1768362745399,0.57857124,145.83,145.8,4.23166496]
[1768362745591,0.57857124,145.83,145.81,4.23166496]
[1768362746297,0.57857124,145.83,145.79,7.52665858]
[1768362746497,0.57857124,145.83,145.81,4.23166496]
[1768362747784,0.57857124,145.84,145.81,4.23166496]
[1768362748109,0.57857124,145.84,145.8,7.52624548]
[1768362748288,0.57857124,145.84,145.81,4.23166496]
[1768362749307,0.57857124,145.84,145.81,2.705504]
[1768362749690,19.35649541,145.85,145.83,2.705504]
[1768362749691,0.099,145.85,145.83,2.705504]
[1768362749887,6.95542633,145.85,145.81,0.66758718]
[1768362750087,0.57377552,145.84,145.82,2.705504]
[1768362750701,7.43499757,145.85,145.82,2.705504]
[1768362750906,0.57857124,145.85,145.82,2.705504]
[1768362752409,19.93464523,145.86,145.82,0.66758718]
[1768362752595,5.1257651,145.85,145.83,2.705504]
[1768362752791,19.8429855,145.88,145.84,3.37309118]
[1768362752792,0.57857124,145.88,145.84,3.37309118]
[1768362753109,5.22391331,145.87,145.84,3.37309118]
[1768362753297,0.099,145.87,145.84,3.37309118]
[1768362754590,0.099,145.87,145.85,2.705504]
[1768362756089,6.9544427,145.87,145.84,0.66758718]
[1768362756288,6.9544427,145.87,145.85,2.705504]
[1768362757315,6.9544427,145.87,145.84,3.37309118]
[1768362758310,6.9544427,145.87,145.84,2.705504]
[1768362759499,0.57377552,145.86,145.84,2.705504]
[1768362760512,0.57377552,145.86,145.83,2.705504]
[1768362762219,0.57377552,145.86,145.84,2.705504]
[1768362764613,7.42969927,145.86,145.82,0.68463441]
[1768362764914,7.42969927,145.86,145.79,36.32747634]
[1768362764915,0.56907524,145.84,145.79,2.705504]
[1768362765090,0.56907524,145.84,145.79,7.54359552]
[1768362765296,0.56907524,145.84,145.8,2.705504]
[1768362765497,0.10840104,145.83,145.8,2.705504]
[1768362766114,0.10840104,145.83,145.81,2.705504]
[1768362766698,6.96582052,145.83,145.79,0.68463441]
[1768362766894,6.96582052,145.83,145.81,2.705504]
[1768362766895,0.10840104,145.83,145.81,2.705504]
[1768362767506,0.099,145.86,145.83,0.68463441]
[1768362767712,12.599,145.86,145.83,2.705504]
[1768362768513,19.45506282,145.86,145.83,2.705504]
[1768362770327,0.57377552,145.85,145.82,2.705504]
[1768362771409,7.43025056,145.85,145.82,2.705504]
[1768362771603,7.43025056,145.85,145.82,3.39013841]
[1768362773325,7.43025056,145.85,145.82,2.705504]
[1768362775023,7.43025056,145.85,145.82,3.39013841]
[1768362775614,0.57377552,145.85,145.82,3.39013841]
[1768362776539,7.43013924,145.85,145.82,3.39013841]
[1768362776726,7.43013924,145.85,145.82,0.68463441]
[1768362778038,0.10374776,145.84,145.8,0.68463441]
[1768362778212,13.06907524,145.83,145.79,3.39013841]
[1768362779218,19.92652842,145.83,145.79,0.68463441]
[1768362779625,19.92652842,145.83,145.79,3.39013841]
[1768362779932,19.92652842,145.83,145.79,0.68463441]
[1768362780133,19.92652842,145.83,145.79,3.39013841]
[1768362780326,0.10840104,145.82,145.77,3.39013841]
[1768362781334,12.54919461,145.81,145.77,0.68463441]
[1768362781530,0.55995342,145.79,145.75,0.68463441]
[1768362783221,6.85965152,145.78,145.75,0.68463441]
[1768362783433,12.5,145.8,145.78,0.68463441]
[1768362783626,12.5,145.8,145.78,3.39013841]
[1768362783924,12.5,145.8,145.77,3.39013841]
[1768362784629,6.95730882,145.81,145.77,3.39013841]
[1768362784834,19.45730882,145.81,145.77,3.39013841]
[1768362786630,12.599,145.81,145.77,3.39013841]
[1768362786831,19.45741187,145.81,145.77,0.68463441]
[1768362788334,7.43650231,145.82,145.77,0.68463441]
[1768362788535,12.5,145.81,145.78,0.67622784]
[1768362788734,12.5,145.81,145.78,3.38173184]
[1768362791636,12.5,145.81,145.79,3.38173184]
[1768362791933,12.5,145.81,145.79,0.67622784]
[1768362796935,12.5,145.81,145.78,0.67622784]
[1768362797144,12.599,145.81,145.77,3.38173184]
[1768362797331,12.599,145.81,145.77,0.67622784]
[1768362798555,12.5,145.81,145.78,0.69155742]
[1768362798724,12.5,145.81,145.77,9.56559345]
[1768362798725,2.80925176,145.79,145.74,3.39706142]
[1768362798922,2.80925176,145.79,145.75,0.69155742]
[1768362799954,9.6687244,145.79,145.75,0.69155742]
[1768362800340,9.54899488,145.79,145.75,0.69155742]
[1768362801041,9.54899488,145.79,145.74,10.25840466]
[1768362802152,9.54899488,145.79,145.75,0.69155742]
[1768362802324,10.02381836,145.79,145.75,0.69155742]
[1768362802645,7.33429612,145.79,145.75,0.69155742]
[1768362802845,0.099,145.78,145.75,0.69155742]
[1768362803327,0.47106524,145.77,145.73,0.69155742]
[1768362808025,7.33119126,145.77,145.73,0.69155742]
[1768362808231,12.5,145.78,145.75,0.69155742]
[1768362811266,24.06227352,145.78,145.72,0.69155742]
[1768362811447,24.06227352,145.78,145.74,0.69155742]
[1768362812452,19.83080386,145.78,145.74,0.69155742]
[1768362813050,24.06227352,145.78,145.74,0.69155742]
[1768362817869,19.83080386,145.78,145.74,0.69155742]
[1768362818169,24.06227352,145.78,145.74,0.69155742]
[1768362818894,0.4673818,145.76,145.73,0.67272335]
[1768362819998,0.47482348,145.77,145.73,4.90419301]
[1768362820196,19.83467853,145.78,145.74,0.67272335]
[1768362821167,24.06614819,145.78,145.74,0.67272335]
[1768362821372,0.47106524,145.76,145.72,4.90419301]
[1768362821567,0.44106521,145.76,145.73,0.67272335]
[1768362822296,23.59132471,145.78,145.73,0.67272335]
[1768362823695,0.44136521,145.8,145.75,4.23146966]
[1768362823998,0.44136521,145.8,145.75,0.67272335]
[1768362824175,4.67283487,145.8,145.75,0.67272335]
[1768362824376,4.67283487,145.8,145.75,4.90419301]
[1768362824784,0.10242365,145.79,145.75,0.67272335]
[1768362825117,0.10242365,145.79,145.75,4.90419301]
[1768362826097,0.10242365,145.79,145.76,0.67272335]
[1768362826300,7.30362221,145.8,145.76,0.67272335]
[1768362826599,17.14527207,145.82,145.76,0.67272335]
[1768362826801,17.14527207,145.82,145.75,11.09250241]
[1768362826802,24.58146149,145.81,145.77,0.67272335]
[1768362826989,23.69215024,145.81,145.77,0.67272335]
[1768362827308,19.46068058,145.81,145.77,0.67272335]
[1768362827612,23.69215024,145.81,145.77,0.67272335]
[1768362828591,0.10577917,145.79,145.76,0.67272335]
[1768362829510,11.53501465,145.8,145.76,0.67272335]
[1768362829893,7.30354499,145.8,145.76,0.67272335]
[1768362830608,0.099,145.79,145.76,0.67272335]
[1768362830902,12.5,145.8,145.77,0.67272335]
[1768362831404,17.17283487,145.8,145.77,0.67272335]
[1768362832209,16.73146966,145.8,145.77,0.67272335]
[1768362832805,19.35880234,145.8,145.77,0.67272335]
[1768362833307,23.689272,145.8,145.76,0.67272335]
[1768362833806,12.5,145.8,145.77,0.67272335]
[1768362834897,12.599,145.8,145.76,4.23146966]
[1768362835197,12.599,145.8,145.76,4.90419301]
[1768362836001,19.4577333,145.8,145.76,0.67272335]
[1768362836207,19.3587333,145.8,145.77,0.67272335]
[1768362841619,12.5,145.8,145.77,0.67272335]
[1768362842719,19.3587522,145.8,145.77,0.67272335]
[1768362843394,23.59022186,145.8,145.77,0.67272335]
[1768362846321,23.68922186,145.8,145.76,0.70060321]
[1768362846531,19.4577522,145.8,145.76,0.70060321]
[1768362846729,0.44136521,145.79,145.75,7.56164668]
[1768362846938,5.56812786,145.79,145.75,11.79311634]
[1768362847107,0.44136521,145.79,145.75,11.79311634]
[1768362847601,12.5,145.8,145.77,0.70060321]
[1768362848139,5.12667204,145.79,145.77,0.70060321]
[1768362848304,12.5,145.8,145.77,0.70060321]
[1768362848515,5.1267337,145.79,145.77,0.70060321]
[1768362848717,12.5,145.8,145.77,0.70060321]
[1768362859259,12.599,145.8,145.77,0.70060321]
[1768362860243,19.45773478,145.8,145.77,0.70060321]
[1768362860757,0.44136521,145.79,145.76,0.67962237]
[1768362860957,0.10242365,145.78,145.74,0.67962237]
[1768362861159,0.4379758,145.77,145.73,4.91109203]
[1768362861350,0.4379758,145.77,145.73,0.67962237]
[1768362861545,0.4379758,145.77,145.73,4.91109203]
[1768362862339,0.10577917,145.76,145.73,0.67962237]
[1768362865049,6.96648392,145.76,145.73,0.67962237]
[1768362866945,6.96648392,145.76,145.72,0.67962237]
[1768362867561,6.96648392,145.76,145.71,4.43146966]
[1768362867562,0.43465383,145.75,145.71,0.87962237]
[1768362867755,0.10906792,145.74,145.71,0.87962237]
[1768362867949,6.86029692,145.77,145.74,0.67962237]
[1768362868152,19.36029692,145.77,145.74,4.91109203]
[1768362868752,19.36029692,145.77,145.71,0.2]
[1768362868753,19.36029692,145.77,145.73,4.91109203]
[1768362868955,12.5,145.77,145.74,0.67962237]
[1768362869265,7.303314,178.0,145.74,0.67962237]
[1768362869266,17.13733852,145.89,145.79,0.67962237]
[1768362869457,17.13733852,145.89,145.84,4.23146966]
[1768362869458,5.1256933,145.88,145.84,4.23146966]
[1768362869666,5.1256933,145.87,145.83,4.23146966]
[1768362869871,5.54051675,145.86,145.83,4.23146966]
[1768362870042,0.41166521,145.84,145.81,4.91109203]
[1768362870248,0.41166521,145.84,145.78,0.67962237]
[1768362870547,0.10212665,145.82,145.79,13.17962237]
[1768362870961,0.41482345,145.83,145.79,0.67962237]
[1768362871249,7.27214518,145.83,145.79,0.67962237]
[1768362871448,7.27214518,145.83,145.79,3.38603669]
[1768362872267,0.41482345,145.83,145.79,3.38603669]
[1768362872464,0.41482345,145.83,145.8,0.67962237]
[1768362873568,7.27230021,145.83,145.8,0.67962237]
[1768362874377,7.27230021,145.83,145.79,0.67962237]
[1768362877465,0.099,145.82,145.77,15.90869786]
[1768362877676,6.85747676,145.83,145.75,6.8609501]
[1768362877677,0.10212665,145.8,145.75,3.40869786]
[1768362877856,0.10212665,145.8,145.75,13.20228354]
[1768362878057,0.40856983,145.79,145.75,0.70228354]
[1768362879063,7.26789757,145.79,145.75,0.70228354]
[1768362880258,0.10519108,145.78,145.74,0.70228354]
[1768362880463,0.10519108,145.78,145.74,3.40869786]
[1768362881178,0.10519108,145.78,145.75,0.70228354]
[1768362881598,0.07519109,145.78,145.75,0.70228354]
[1768362881781,6.85932774,145.79,145.75,0.70228354]
[1768362883483,7.2441512,145.79,145.75,0.70228354]
[1768362888587,7.2441512,145.79,145.75,3.40869786]
[1768362888882,7.2441512,145.79,145.75,0.70228354]
[1768362890678,6.85932774,145.79,145.75,0.70228354]
[1768362891266,6.85932774,145.79,145.76,0.70228354]
[1768362891491,6.95832774,145.79,145.76,0.70228354]
[1768362893086,6.92832775,145.79,145.75,3.40869786]
[1768362894785,6.89832776,145.79,145.75,3.40869786]
[1768362895373,0.38196522,145.78,145.74,0.70228354]
[1768362895684,26.65369461,145.79,145.74,3.40869786]
[1768362895897,23.94728029,145.79,145.74,3.40869786]
[1768362896090,23.94728029,145.79,145.75,0.70228354]
[1768362896388,6.79932776,145.79,145.75,3.40869786]
[1768362896591,6.79932776,145.79,145.76,0.70228354]
[1768362896798,6.79932776,145.79,145.75,0.70228354]
[1768362897184,17.14725803,145.8,145.75,0.70228354]
[1768362897395,19.85367235,145.8,145.75,0.70228354]
[1768362897573,2.70641432,145.78,145.73,15.90869786]
[1768362897887,2.70641432,145.78,145.73,0.70228354]
[1768362898097,2.70641432,145.77,145.73,0.70228354]
[1768362898879,2.70641432,145.77,145.72,13.20228354]
[1768362899392,2.70641432,145.77,145.72,15.90869786]
[1768362899879,24.00878034,145.78,145.72,15.90869786]
[1768362900073,2.70641432,145.77,145.72,15.90869786]
[1768362901195,2.70641432,145.77,145.71,0.90228354]
[1768362901373,9.56700707,145.76,145.71,0.90228354]
[1768362902289,26.71848895,145.76,145.71,0.90228354]
[1768362902691,24.01207463,145.76,145.71,0.90228354]
[1768362902894,6.86059275,145.76,145.72,0.70228354]
[1768362903200,6.86059275,145.76,145.73,0.70228354]
[1768362903491,6.86012211,145.77,145.74,0.70228354]
[1768362904402,24.00936497,145.78,145.74,0.70228354]
[1768362904578,26.71577929,145.78,145.74,0.70228354]
[1768362906500,104.2,145.79,145.74,0.70228354]
[1768362906501,21.22738896,145.83,145.74,6.86129706]
[1768362906687,0.65738896,145.83,145.75,19.1801107]
[1768362906885,0.65738896,145.83,145.81,2.70641432]
[1768362907075,0.65738896,145.83,145.8,2.70641432]
[1768362907270,0.65738896,145.83,145.75,29.45091977]
[1768362908396,0.65738896,145.83,145.81,2.70641432]
[1768362909206,0.65738896,145.83,145.78,6.85919595]
[1768362909383,7.51471126,145.83,145.79,2.70641432]
[1768362909584,7.51471126,145.83,145.75,16.95091977]
[1768362909585,0.65738896,145.82,145.75,16.95091977]
[1768362909783,0.65738896,145.81,145.76,2.70641432]
[1768362910182,0.65738896,145.81,145.77,2.70641432]
[1768362910607,0.65738896,145.81,145.76,6.86022179]
[1768362910903,0.65738896,145.81,145.77,2.70641432]
[1768362911698,0.65738896,145.81,145.78,2.70641432]
[1768362912082,0.65738896,145.81,145.76,6.86022179]
[1768362912593,0.65738896,145.81,145.78,2.70641432]
[1768362913503,0.65738896,145.82,145.79,2.70641432]
[1768362914784,7.51421836,145.84,145.8,2.70641432]
[1768362914991,0.65738896,145.83,145.8,2.70641432]
[1768362915197,0.65738896,145.83,145.79,2.70641432]
[1768362917010,0.65738896,145.82,145.79,2.70641432]
[1768362919827,0.41738896,145.82,145.79,2.70641432]
[1768362920713,7.27517445,145.82,145.79,2.70641432]
[1768362921604,7.27517445,145.82,145.78,2.94641432]
[1768362922505,7.27517445,145.82,145.76,0.24]
[1768362922506,0.67162924,145.81,145.76,0.24]
[1768362922686,0.67162924,145.8,145.76,2.70641432]
[1768362922885,0.67162924,145.79,145.75,15.44641432]
[1768362923604,0.67162924,145.79,145.75,15.20641432]
[1768362924514,0.67162924,145.78,145.75,15.20641432]
[1768362924998,0.67162924,145.78,145.75,12.5]
[1768362925203,0.67162924,145.78,145.75,15.20641432]
[1768362926008,7.53088523,145.79,145.75,15.44641432]
[1768362927009,7.53088523,145.79,145.75,12.74]
[1768362927342,7.53088523,145.79,145.75,15.44641432]
[1768362928909,0.67162924,145.78,145.75,2.70641432]
[1768362929303,0.67162924,145.78,145.74,12.5]
[1768362929509,0.67162924,145.78,145.75,2.70641432]
[1768362930310,0.67162924,145.78,145.74,15.20641432]
[1768362931113,0.67162924,145.77,145.74,15.20641432]
[1768362931518,0.67162924,145.77,145.75,2.70641432]
[1768362931722,7.53103102,145.79,145.74,19.60134926]
[1768362931934,7.53103102,145.79,145.75,2.94641432]
[1768362932119,0.67162924,145.78,145.75,2.70641432]
[1768362932634,0.67162924,145.79,145.75,2.94641432]
[1768362932817,0.67162924,145.79,145.75,0.24]
[1768362933127,0.67162924,145.79,145.75,2.94641432]
[1768362933332,7.53084929,145.79,145.75,4.47054296]
[1768362933902,4.23054296,145.86,145.75,4.47054296]
[1768362933903,7.67726386,145.89,145.78,0.72075751]
[1768362934100,4.23054296,145.93,145.85,4.23054296]
[1768362934316,4.23054296,145.93,145.82,6.6801107]
[1768362934317,3.57359937,145.91,145.87,4.23054296]
[1768362934527,16.83054296,145.94,145.87,4.23054296]
[1768362934838,12.6,145.94,145.87,4.23054296]
[1768362935030,28.21464492,145.93,145.87,4.23054296]
[1768362935206,4.23054296,145.92,145.86,4.23054296]
[1768362935526,28.21464492,145.93,145.87,4.23054296]
[1768362936025,7.63451587,145.94,145.88,4.23054296]
[1768362936223,0.78234063,145.94,145.92,4.23054296]
[1768362936427,0.78234063,145.94,145.91,4.23054296]
[1768362936725,0.68234063,145.93,145.91,4.23054296]
[1768362936918,0.68234063,145.93,145.9,4.23054296]
[1768362938204,0.68234063,145.93,145.91,4.23054296]
[1768362938437,0.68234063,145.93,145.85,8.246328]
[1768362938438,0.68234063,145.91,145.84,10.27080907]
[1768362938655,0.68234063,145.91,145.74,15.0]
[1768362938656,0.68234063,145.9,145.85,4.23054296]
[1768362939442,0.68234063,145.9,145.86,4.23054296]
[1768362939648,13.18234063,145.89,145.86,4.23054296]
[1768362939825,0.68234063,145.88,145.86,4.23054296]
[1768362940029,13.18234063,145.87,145.86,4.23054296]
[1768362940229,13.18234063,145.87,145.85,4.23054296]
[1768362940425,4.05151837,145.86,145.85,4.23054296]
[1768362940628,0.68234063,145.87,145.85,4.23054296]
[1768362941631,0.68234063,145.87,145.84,4.23054296]
[1768362943034,13.18234063,145.87,145.84,4.23054296]
[1768362943642,13.18234063,145.87,145.82,6.85776985]
[1768362943643,0.68234063,145.85,145.82,4.23054296]
[1768362943846,13.18234063,145.85,145.82,4.23054296]
[1768362944322,13.18234063,145.85,145.81,4.23054296]
[1768362946150,20.03878173,145.85,145.81,4.23054296]
[1768362946325,0.68234063,145.84,145.78,6.85950225]
[1768362946525,0.68234063,145.84,145.79,4.23054296]
[1768362947243,0.68234063,145.84,145.8,4.23054296]
[1768362947439,12.5,145.85,145.82,4.23054296]
[1768362948551,12.5,145.85,145.81,4.23054296]
[1768362948552,13.18234063,145.85,145.81,4.23054296]
[1768362949260,0.68234063,145.85,145.81,4.23054296]
[1768362949552,13.18234063,145.85,145.8,11.08911204]
[1768362949764,0.68234063,145.85,145.8,6.85856908]
[1768362950049,0.68234063,145.85,145.8,11.08911204]
[1768362950937,7.5387822,145.85,145.8,11.08911204]
[1768362951134,7.5387822,145.85,145.79,11.08929309]
[1768362951736,7.5387822,145.85,145.8,4.23054296]
[1768362952043,0.68234063,145.85,145.8,4.23054296]
[1768362952251,7.53870659,145.85,145.79,6.85875013]
[1768362952630,7.53870659,145.85,145.79,11.08929309]
[1768362954949,7.53870659,145.85,145.8,4.23054296]
[1768362955653,0.68234063,145.85,145.8,4.23054296]
[1768362956742,0.68234063,145.85,145.8,11.08909388]
[1768362956942,0.68234063,145.85,145.8,6.85855092]
[1768362957156,0.68234063,145.85,145.8,11.08909388]
[1768362958659,0.68234063,145.85,145.8,6.85855092]
[1768362959455,0.68234063,145.87,145.8,11.08909388]
[1768362959660,20.67,145.94,145.84,6.6801107]
[1768362959661,0.68234063,145.93,145.84,6.6801107]
[1768362959955,5.0959664,145.92,145.86,4.23054296]
[1768362960151,0.68234063,145.93,145.85,21.74380907]
[1768362960360,0.68234063,145.93,145.87,4.23054296]
[1768362960538,0.1,145.94,145.88,6.6801107]
[1768362960856,0.1,145.95,145.91,4.23054296]
[1768362961059,0.1,145.95,145.9,6.85391578]
[1768362961060,0.78234063,145.95,145.9,6.85391578]
[1768362961356,7.63410588,145.95,145.91,4.23054296]
[1768362961559,0.78234063,145.95,145.91,4.23054296]
[1768362963656,7.63404847,145.95,145.91,4.23054296]
[1768362964457,0.78234063,145.95,145.91,4.23054296]
[1768362964661,0.78234063,145.95,145.9,6.85399106]
[1768362964855,0.78234063,145.95,145.91,4.23054296]
[1768362966639,0.70455097,145.94,145.9,4.23054296]
[1768362967249,0.70455097,145.94,145.89,6.85435802]
[1768362967571,0.70455097,145.94,145.9,4.23054296]
[1768362967753,0.70455097,145.93,145.9,4.23054296]
[1768362968450,0.70455097,145.93,145.88,6.85477665]
[1768362968660,0.70455097,145.93,145.9,4.23054296]
[1768362968865,0.70455097,145.93,145.89,4.23054296]
[1768362969065,0.70455097,145.93,145.9,4.23054296]
[1768362971672,0.70455097,145.93,145.89,11.08486429]
[1768362971847,0.70455097,145.93,145.89,4.23054296]
[1768362972048,0.70455097,145.92,145.88,4.23054296]
[1768362972264,6.85263361,145.93,145.88,4.93509393]
[1768362972567,6.85231322,145.94,145.89,4.23054296]
[1768362973875,6.85231322,145.94,145.89,4.93509393]
[1768362974259,0.70455097,145.93,145.89,4.93509393]
[1768362974664,0.70455097,145.93,145.89,0.70455097]
[1768362975752,0.70455097,145.93,145.88,11.08521676]
[1768362976067,0.70455097,145.92,145.88,11.08521676]
[1768362976771,0.70455097,145.92,145.88,11.78976773]
[1768362976972,0.70455097,145.92,145.88,7.55922477]
[1768362977276,0.70455097,145.92,145.88,11.78976773]
[1768362977475,0.70455097,145.92,145.89,4.23054296]
[1768362979465,0.70455097,145.92,145.88,11.78976773]
[1768362981472,0.65394105,145.93,145.89,0.70455097]
[1768362981775,0.65394105,145.93,145.88,11.78976773]
[1768362982076,0.65394105,145.93,145.89,0.70455097]
[1768362982275,0.65394105,145.93,145.88,11.78976773]
[1768362982772,0.65394105,145.93,145.87,4.93509393]
[1768362982981,0.65394105,145.93,145.86,7.56035326]
[1768362983154,0.65394105,145.91,145.87,4.23054296]
[1768362984183,0.65394105,145.91,145.86,0.70455097]
[1768362984492,0.65394105,145.91,145.86,4.23054296]
[1768362985173,0.65394105,145.89,145.86,4.23054296]
[1768362986284,0.65394105,145.89,145.85,13.20455097]
[1768362986484,0.65394105,145.89,145.86,4.23054296]
[1768362987297,0.65394105,145.89,145.85,13.20455097]
[1768362987468,0.65394105,145.89,145.86,4.23054296]
[1768362988680,0.65394105,145.89,145.85,12.5]
[1768362988681,0.65394105,145.89,145.87,4.23054296]
[1768362988983,0.65394105,145.9,145.87,4.23054296]
[1768362989762,0.65394105,145.9,145.86,0.70455097]
[1768362990280,0.65394105,145.9,145.86,4.93509393]
[1768362990583,0.65394105,145.9,145.85,19.35615774]
[1768362990771,0.65394105,145.9,145.86,4.23054296]
[1768362991085,0.65394105,145.87,145.82,0.70455097]
[1768362991379,6.85508474,145.88,145.81,0.70455097]
[1768362991593,0.65394105,145.87,145.83,4.93509393]
[1768362993285,0.65394105,145.87,145.83,0.70455097]
[1768362993591,0.65394105,145.87,145.83,3.40938318]
[1768362994367,0.65394105,145.87,145.83,0.70455097]
[1768362995484,0.65394105,145.87,145.82,9.56259927]
[1768362996390,0.65394105,145.87,145.82,10.22695691]
[1768362996575,0.65394105,145.87,145.83,0.66435764]
[1768362997086,0.65394105,145.87,145.82,9.56259927]
[1768362997283,0.65394105,145.87,145.83,0.66435764]
[1768362997666,0.65394105,145.87,145.82,9.56259927]
[1768362998170,0.65394105,145.87,145.83,0.66435764]
[1768362998571,0.65394105,145.87,145.82,9.56259927]
[1768362998883,0.65394105,145.87,145.82,10.22695691]
[1768362999187,0.65394105,145.87,145.82,3.36918985]
[1768362999188,0.71710851,145.86,145.82,3.36918985]
[1768362999386,0.68710852,145.86,145.82,9.56260174]
[1768362999767,6.85543458,145.87,145.83,0.66435764]
[1768362999968,6.85543458,145.87,145.82,0.66435764]
[1768363000278,9.56026679,145.87,145.82,0.66435764]
[1768363000483,9.56026679,145.87,145.81,22.06294648]
[1768363000787,9.56026679,145.87,145.81,22.72730412]
[1768363000978,9.56026679,145.87,145.82,0.66435764]
[1768363001178,17.13677766,145.89,145.81,22.06294648]
[1768363001179,2.70483221,145.88,145.81,22.06294648]
[1768363001477,0.71710851,145.87,145.82,0.66435764]
[1768363001682,0.71710851,145.87,145.81,22.06294648]
[1768363002085,7.57295588,145.87,145.82,0.66435764]
[1768363002285,0.71710851,145.86,145.82,0.66435764]
[1768363002468,0.71710851,145.86,145.81,22.06294648]
[1768363002794,0.71710851,145.86,145.81,19.35811427]
[1768363002994,0.71710851,145.86,145.81,22.06294648]
[1768363003169,0.71710851,145.85,145.8,2.70483221]